bitfinex/quotes_SOLUSD_20250418
["timestamp","ask_amount","ask_price","bid_price","bid_amount"]
[1744973053148,25.78835609,133.78,133.74,6.1696107]
[1744973053660,31.95796679,133.78,133.74,6.1696107]
[1744973054345,6.1696107,133.77,133.72,21.1296107]
[1744973055455,26.16626793,133.76,133.72,21.1296107]
[1744973057671,32.33587863,133.76,133.72,21.1296107]
[1744973059446,26.16626793,133.76,133.72,21.1296107]
[1744973059652,26.16626793,133.76,133.73,6.1696107]
[1744973061469,69.70676122,133.78,133.73,6.1696107]
[1744973063960,6.1696107,133.77,133.73,6.1696107]
[1744973065581,69.70676122,133.78,133.73,6.1696107]
[1744973066473,6.1696107,133.77,133.72,21.1296107]
[1744973068279,26.16626793,133.76,133.72,21.1296107]
[1744973068478,32.33587863,133.76,133.72,21.1296107]
[1744973069877,6.1696107,133.77,133.72,21.1296107]
[1744973070878,26.16235609,133.78,133.75,6.1696107]
[1744973071669,26.16235609,133.78,133.74,6.1696107]
[1744973072065,6.1696107,133.77,133.72,21.1296107]
[1744973074477,26.16626793,133.76,133.72,21.1296107]
[1744973077478,26.16626793,133.76,133.73,6.1696107]
[1744973078485,26.16626793,133.76,133.72,21.1296107]
[1744973080185,26.16626793,133.76,133.72,6.1696107]
[1744973080992,32.33587863,133.76,133.71,21.0896107]
[1744973081368,69.7162614,133.76,133.71,21.0896107]
[1744973081674,6.1696107,133.75,133.71,21.0896107]
[1744973081873,69.7162614,133.76,133.71,21.0896107]
[1744973086691,6.45393384,133.75,133.71,21.0896107]
[1744973086991,6.45393384,133.75,133.71,14.92]
[1744973087287,26.17018094,133.74,133.71,21.0896107]
[1744973089396,18.69298639,133.74,133.71,21.0896107]
[1744973089699,18.69298639,133.74,133.71,6.1696107]
[1744973093401,18.69298639,133.74,133.69,47.1096107]
[1744973093402,24.86259709,133.74,133.69,47.1096107]
[1744973093801,6.1696107,133.73,133.69,47.1096107]
[1744973094208,24.86259709,133.74,133.69,47.1096107]
[1744973094707,69.72576442,133.74,133.69,47.1096107]
[1744973096186,6.1696107,133.73,133.69,14.94]
[1744973097511,26.17409512,133.72,133.69,14.94]
[1744973099792,6.1696107,133.71,133.69,14.94]
[1744973099999,6.1696107,133.71,133.66,6.16961071]
[1744973100198,6.45393384,133.71,133.66,6.16961071]
[1744973100391,0.28432314,133.71,133.67,6.1696107]
[1744973100716,69.73527028,133.72,133.67,6.1696107]
[1744973101085,26.17409512,133.72,133.69,6.1696107]
[1744973101507,26.17409512,133.72,133.68,6.1696107]
[1744973105219,32.34370582,133.72,133.68,6.1696107]
[1744973105417,32.34370582,133.72,133.67,6.1696107]
[1744973106297,26.17409512,133.72,133.68,6.1696107]
[1744973108123,6.1696107,133.72,133.68,6.1696107]
[1744973108524,6.1696107,133.72,133.67,6.1696107]
[1744973110428,26.17605264,133.71,133.67,6.1696107]
[1744973111306,7.47887218,133.71,133.7,6.1696107]
[1744973111842,6.1696107,133.77,133.7,20.9696107]
[1744973112038,32.33392256,133.77,133.72,6.1696107]
[1744973112331,26.16431186,133.77,133.73,6.1696107]
[1744973112535,24.85840489,133.77,133.73,6.1696107]
[1744973112823,18.68879419,133.77,133.72,6.1696107]
[1744973113035,18.68879419,133.77,133.74,6.1696107]
[1744973113332,7.47495888,133.78,133.76,6.1696107]
[1744973113541,26.16235609,133.78,133.75,6.1696107]
[1744973114405,26.16235609,133.78,133.76,6.1696107]
[1744973114631,26.15844543,133.8,133.76,6.1696107]
[1744973115731,26.15844543,133.8,133.78,6.1696107]
[1744973116720,0.063,133.81,133.78,6.1696107]
[1744973117126,0.063,133.81,133.79,6.1696107]
[1744973117426,0.063,133.81,133.8,6.1696107]
[1744973118105,0.063,133.81,133.78,6.1696107]
[1744973118432,0.063,133.81,133.8,6.1696107]
[1744973118617,0.063,133.81,133.77,0.14216157]
[1744973118819,0.063,133.81,133.79,6.1696107]
[1744973119127,0.063,133.81,133.8,6.1696107]
[1744973119726,0.063,133.81,133.8,20.9496107]
[1744973120113,0.063,133.81,133.8,21.09177227]
[1744973122520,0.063,133.81,133.8,20.9496107]
[1744973124339,0.063,133.81,133.8,14.78]
[1744973124725,0.063,133.81,133.8,6.1696107]
[1744973125034,0.063,133.81,133.79,6.1696107]
[1744973125338,0.063,133.81,133.8,6.1696107]
[1744973129817,0.063,133.81,133.8,6.31177227]
[1744973130252,0.063,133.81,133.78,14.92216157]
[1744973130417,0.063,133.81,133.79,6.1696107]
[1744973131841,0.063,133.81,133.78,20.9496107]
[1744973132136,6.2326107,133.81,133.78,14.78]
[1744973132944,6.1696107,133.8,133.78,14.78]
[1744973133442,6.2326107,133.81,133.78,14.78]
[1744973134140,7.47384155,133.8,133.78,14.78]
[1744973136844,6.1696107,133.8,133.78,14.78]
[1744973138545,6.1696107,133.79,133.74,20.9296107]
[1744973138741,26.16235609,133.78,133.74,20.9296107]
[1744973139129,26.16235609,133.78,133.75,6.1696107]
[1744973139834,26.16235609,133.78,133.74,20.9296107]
[1744973140139,26.16235609,133.78,133.74,14.76]
[1744973140348,32.33196679,133.78,133.74,14.76]
[1744973140652,6.1696107,133.76,133.74,14.76]
[1744973140855,32.33783499,133.75,133.71,247.79]
[1744973141053,32.33783499,133.75,133.71,0.03]
[1744973141223,32.33783499,133.75,133.71,6.1996107]
[1744973141427,32.33783499,133.75,133.72,0.03]
[1744973141732,6.1696107,133.74,133.72,0.03]
[1744973142318,32.33783499,133.75,133.72,0.03]
[1744973143848,6.1696107,133.74,133.72,0.03]
[1744973145263,7.47775368,133.73,133.72,0.03]
[1744973147355,0.28432314,133.75,133.72,0.03]
[1744973147529,6.45393384,133.75,133.72,0.03]
[1744973148033,6.1696107,133.75,133.72,0.03]
[1744973148336,6.1696107,133.74,133.72,0.03]
[1744973149159,7.47719455,133.74,133.72,0.03]
[1744973151861,7.47719455,133.74,133.72,6.1996107]
[1744973152958,7.47719455,133.74,133.72,0.03]
[1744973154165,26.16885716,133.75,133.72,0.03]
[1744973158864,32.33846786,133.75,133.72,0.03]
[1744973159366,26.16885716,133.75,133.72,0.03]
[1744973159689,26.16885716,133.75,133.72,6.1996107]
[1744973159846,26.16885716,133.75,133.73,6.1696107]
[1744973160048,7.47663551,133.75,133.74,6.1696107]
[1744973161172,26.16822429,133.75,133.73,6.1696107]
[1744973161364,26.16822429,133.75,133.72,6.1996107]
[1744973161771,18.69158878,133.75,133.72,6.1996107]
[1744973165467,18.69158878,133.75,133.73,6.1696107]
[1744973166975,26.16431186,133.77,133.73,6.1696107]
[1744973168067,26.16431186,133.77,133.74,6.1696107]
[1744973168474,32.33392256,133.77,133.73,6.1696107]
[1744973171269,69.71151095,133.77,133.73,26.0]
[1744973172380,69.71151095,133.77,133.72,0.03]
[1744973172566,26.16822429,133.75,133.72,0.03]
[1744973173078,26.16822429,133.75,133.72,6.1996107]
[1744973174283,18.69158878,133.75,133.72,6.1996107]
[1744973176283,63.54190025,133.77,133.72,6.1996107]
[1744973178088,69.71151095,133.77,133.72,6.1996107]
[1744973183371,69.71151095,133.77,133.72,20.9596107]
[1744973185396,26.16431186,133.77,133.74,6.1696107]
[1744973187207,18.68879419,133.77,133.74,6.1696107]
[1744973187500,18.68879419,133.77,133.73,26.0]
[1744973187802,18.68879419,133.77,133.72,20.9596107]
[1744973189004,26.16431186,133.77,133.72,20.9596107]
[1744973190297,26.16431186,133.77,133.72,14.79]
[1744973192975,6.1696107,133.73,133.72,1e-08]
[1744973193494,6.45393384,133.73,133.72,1e-08]
[1744973193896,6.45393384,133.73,133.68,26.0]
[1744973194098,6.45393384,133.73,133.68,32.1696107]
[1744973194600,6.1696107,133.73,133.68,32.1696107]
[1744973194985,26.17409512,133.72,133.68,32.1696107]
[1744973195996,7.47831289,133.72,133.7,32.1696107]
[1744973196195,7.47831289,133.72,133.71,6.1696107]
[1744973196875,18.69345501,133.74,133.71,6.1696107]
[1744973198507,6.1696107,133.75,133.7,46.8496107]
[1744973199604,6.1696107,133.76,133.71,6.1696107]
[1744973199802,69.71151095,133.77,133.72,6.1696107]
[1744973199987,69.71151095,133.77,133.74,6.1696107]
[1744973199988,26.16431186,133.77,133.74,6.1696107]
[1744973200607,18.68879419,133.77,133.73,32.1696107]
[1744973200809,7.47495888,133.78,133.76,6.1696107]
[1744973201104,7.47495888,133.78,133.77,6.1696107]
[1744973202702,37.43271871,133.8,133.77,6.1696107]
[1744973203688,43.60232941,133.8,133.75,20.8496107]
[1744973204206,6.1696107,133.79,133.75,14.68]
[1744973204605,43.60232941,133.8,133.75,20.8496107]
[1744973204811,69.76077484,133.8,133.75,20.8496107]
[1744973209512,63.59116414,133.8,133.76,6.1696107]
[1744973209719,69.76077484,133.8,133.75,20.8496107]
[1744973211606,6.1696107,133.79,133.75,14.68]
[1744973211922,6.1696107,133.78,133.75,14.68]
[1744973212916,6.1696107,133.79,133.75,14.68]
[1744973213519,26.16235609,133.78,133.75,14.68]
[1744973215406,26.16235609,133.78,133.75,20.8496107]
[1744973215607,18.68739721,133.78,133.76,6.1696107]
[1744973216323,7.47440017,133.79,133.77,6.1696107]
[1744973216528,7.47440017,133.79,133.78,6.1696107]
[1744973217323,0.063,133.8,133.78,6.1696107]
[1744973218828,0.063,133.8,133.76,6.1696107]
[1744973219417,26.22144543,133.8,133.76,6.1696107]
[1744973219919,26.22144543,133.8,133.75,14.68]
[1744973220219,26.22144543,133.8,133.76,6.1696107]
[1744973220529,26.22144543,133.8,133.77,6.1696107]
[1744973221341,26.22144543,133.8,133.76,6.1696107]
[1744973223533,18.74760388,133.8,133.77,6.1696107]
[1744973225547,18.74760388,133.8,133.78,6.1696107]
[1744973226045,18.74760388,133.8,133.77,6.1696107]
[1744973226927,18.74760388,133.8,133.75,0.14216157]
[1744973227122,18.74760388,133.8,133.77,6.1696107]
[1744973229023,18.74760388,133.8,133.78,6.1696107]
[1744973229431,18.74760388,133.8,133.79,6.1696107]
[1744973230343,0.063,133.8,133.79,6.1696107]
[1744973236527,0.063,133.8,133.78,6.1696107]
[1744973237929,0.063,133.8,133.79,6.1696107]
[1744973242246,0.063,133.8,133.79,6.31177227]
[1744973244745,0.063,133.8,133.79,6.1696107]
[1744973247451,0.063,133.8,133.79,6.31177227]
[1744973248736,0.063,133.8,133.79,5.31177227]
[1744973250357,0.063,133.8,133.79,19.99177227]
[1744973251955,0.063,133.81,133.8,18.79181043]
[1744973252156,0.063,133.83,133.82,26.0]
[1744973252338,0.063,133.84,133.83,18.64964886]
[1744973252532,0.063,133.84,133.83,24.81925956]
[1744973253035,0.063,133.85,133.84,0.14216157]
[1744973253230,0.063,133.85,133.84,84.27986393]
[1744973254146,0.063,133.85,133.84,65.63021507]
[1744973254354,0.063,133.85,133.84,20.95177227]
[1744973255453,0.063,133.85,133.84,20.8096107]
[1744973258454,0.063,133.85,133.84,20.95177227]
[1744973259458,0.063,133.85,133.84,84.27986393]
[1744973260560,0.063,133.85,133.84,59.60142113]
[1744973261056,0.063,133.85,133.84,87.55283022]
[1744973261459,0.063,133.86,133.85,32.59609541]
[1744973262057,0.063,133.87,133.86,38.64964886]
[1744973262859,0.063,133.87,133.86,6.31177227]
[1744973263565,0.063,133.87,133.86,6.1696107]
[1744973267470,0.063,133.87,133.84,14.64]
[1744973267644,0.063,133.87,133.84,20.8096107]
[1744973268167,0.063,133.87,133.84,14.64]
[1744973268352,0.063,133.87,133.84,20.8096107]
[1744973273075,0.063,133.87,133.84,14.64]
[1744973273257,0.063,133.87,133.84,20.8096107]
[1744973273461,6.2326107,133.87,133.83,26.0]
[1744973274059,6.2326107,133.87,133.83,32.1696107]
[1744973274260,0.063,133.87,133.85,6.1696107]
[1744973280378,0.063,133.87,133.84,6.1696107]
[1744973282981,0.063,133.87,133.85,6.1696107]
[1744973284064,0.063,133.87,133.84,6.1696107]
[1744973285485,0.063,133.87,133.85,6.1696107]
[1744973285978,0.063,133.87,133.86,6.1696107]
[1744973286184,0.063,133.87,133.85,6.1696107]
[1744973286383,0.063,133.87,133.84,20.8096107]
[1744973286786,0.063,133.87,133.84,14.64]
[1744973287183,0.063,133.87,133.8,14.64]
[1744973287184,6.1696107,133.85,133.8,14.64]
[1744973287382,6.1696107,133.84,133.8,14.64]
[1744973287586,7.47216618,133.83,133.8,40.64]
[1744973288280,32.32219233,133.83,133.8,14.64]
[1744973288482,6.1696107,133.81,133.78,0.03]
[1744973288684,6.1696107,133.79,133.78,0.03]
[1744973289683,13.64401087,133.79,133.78,0.03]
[1744973290380,7.47440017,133.79,133.78,0.03]
[1744973293997,13.64401087,133.79,133.78,0.03]
[1744973294393,7.47440017,133.79,133.78,0.03]
[1744973294590,13.64401087,133.79,133.78,0.03]
[1744973295074,13.64401087,133.79,133.77,14.64]
[1744973295278,32.33001131,133.79,133.75,26.0]
[1744973297385,32.33001131,133.79,133.75,32.1696107]
[1744973298099,26.16040061,133.79,133.75,32.1696107]
[1744973299400,32.33001131,133.79,133.75,32.1696107]
[1744973300801,32.33001131,133.79,133.73,14.64]
[1744973300802,6.1696107,133.76,133.73,14.64]
[1744973301388,7.47663551,133.75,133.73,14.64]
[1744973302091,13.64624621,133.75,133.73,14.64]
[1744973302298,32.33783499,133.75,133.7,6.1996107]
[1744973302497,6.1696107,133.73,133.7,0.03]
[1744973302799,6.1696107,133.72,133.7,0.03]
[1744973303185,6.1696107,133.71,133.7,0.03]
[1744973303385,6.45393384,133.71,133.7,1e-08]
[1744973303693,13.93280602,133.71,133.7,1e-08]
[1744973303896,32.58245488,133.71,133.7,1e-08]
[1744973308715,7.47887218,133.71,133.7,1e-08]
[1744973308913,7.47887218,133.71,133.7,6.16961071]
[1744973309119,26.16822429,133.75,133.7,6.16961071]
[1744973309318,26.16822429,133.75,133.73,6.1696107]
[1744973310510,26.16822429,133.75,133.72,6.1696107]
[1744973310511,18.69158878,133.75,133.72,6.1696107]
[1744973310720,18.69158878,133.75,133.73,6.1696107]
[1744973311099,18.69158878,133.75,133.72,14.66]
[1744973311313,18.69158878,133.75,133.73,9.63051616]
[1744973311811,18.69158878,133.75,133.72,14.66]
[1744973312607,26.16822429,133.75,133.72,14.66]
[1744973313500,35.79874045,133.75,133.72,14.66]
[1744973313899,9.63051616,133.73,133.7,1e-08]
[1744973314714,7.47831289,133.72,133.7,1e-08]
[1744973315421,7.47831289,133.72,133.7,9.63051617]
[1744973316922,18.69495619,133.73,133.7,9.63051617]
[1744973317525,18.69495619,133.73,133.7,1e-08]
[1744973318021,26.17270987,133.73,133.7,1e-08]
[1744973318195,35.80322603,133.73,133.7,1e-08]
[1744973318399,9.63051616,133.71,133.7,1e-08]
[1744973318799,26.45703301,133.73,133.7,1e-08]
[1744973318800,26.17270987,133.73,133.7,1e-08]
[1744973319112,35.80322603,133.73,133.7,1e-08]
[1744973319302,26.17270987,133.73,133.7,9.63051617]
[1744973320021,63.55140186,133.75,133.71,9.63051616]
[1744973320406,73.18191802,133.75,133.7,9.63051617]
[1744973321418,7.47775368,133.73,133.7,9.63051617]
[1744973321730,7.47775368,133.73,133.7,1e-08]
[1744973321731,28.56448816,133.71,133.7,1e-08]
[1744973323719,36.04336034,133.71,133.7,1e-08]
[1744973324021,17.39371148,133.71,133.7,1e-08]
[1744973325301,36.04336034,133.71,133.7,1e-08]
[1744973334633,45.6738765,133.71,133.7,1e-08]
[1744973335211,36.04336034,133.71,133.7,1e-08]
[1744973336036,0.28432314,133.7,133.65,1e-08]
[1744973336227,9.63051616,133.67,133.65,1e-08]
[1744973336407,9.63051616,133.66,133.65,1e-08]
[1744973337233,6.17389616,133.66,133.64,1e-08]
[1744973338031,6.17389616,133.65,133.64,1e-08]
[1744973338319,6.17389616,133.65,133.63,0.03]
[1744973338320,6.4582193,133.65,133.62,1e-08]
[1744973338521,6.17389616,133.63,133.6,0.03]
[1744973338836,6.17389616,133.61,133.6,1e-08]
[1744973339215,32.59233788,133.61,133.56,0.03]
[1744973339417,6.17389616,133.58,133.56,0.03]
[1744973339617,6.17389616,133.59,133.56,0.03]
[1744973339812,6.17389616,133.57,133.53,14.66]
[1744973340225,63.61799265,133.61,133.53,14.66]
[1744973340434,6.17389616,133.6,133.55,6.17389616]
[1744973340634,6.17389616,133.59,133.54,6.17389616]
[1744973340849,63.61799265,133.61,133.51,0.03]
[1744973340850,18.64964886,133.54,133.51,0.03]
[1744973341139,0.28432314,133.51,133.44,9.67117914]
[1744973341349,9.67117914,133.49,133.43,20.0]
[1744973341645,9.67117914,133.49,133.45,26.0]
[1744973341835,9.67117914,133.5,133.45,9.67117914]
[1744973342038,9.67117914,133.49,133.44,35.67117914]
[1744973342234,9.67117914,133.5,133.45,9.67117914]
[1744973342634,26.21526476,133.51,133.48,9.67117914]
[1744973343032,18.71810637,133.57,133.51,26.0]
[1744973343237,9.67117914,133.63,133.56,9.67117914]
[1744973343432,9.67117914,133.62,133.57,24.35117914]
[1744973344037,56.11673918,133.65,133.58,9.67117914]
[1744973344238,9.67117914,133.63,133.58,9.67117914]
[1744973344446,9.67117914,133.61,133.59,15.14]
[1744973344741,11.6054833,133.63,133.59,24.81117914]
[1744973344930,21.27666244,133.63,133.59,15.14]
[1744973345125,15.44390426,133.62,133.59,15.14]
[1744973345330,22.92837398,133.61,133.57,15.44390426]
[1744973345532,15.44390426,133.6,133.58,15.14]
[1744973345740,15.44390426,133.6,133.56,26.0]
[1744973345949,15.44390426,133.59,133.5,22.9961846]
[1744973346253,15.44390426,133.59,133.53,26.0]
[1744973346254,15.44390426,133.56,133.53,26.0]
[1744973346848,15.44390426,133.58,133.53,41.44390426]
[1744973347254,7.48895379,133.53,133.5,15.14]
[1744973347954,7.48843796,133.54,133.5,30.58390426]
[1744973348252,7.48671108,133.57,133.53,15.44390426]
[1744973348551,7.48671108,133.57,133.54,15.44390426]
[1744973348752,7.48671108,133.57,133.55,15.14]
[1744973349431,26.20259469,133.58,133.55,15.14]
[1744973350840,41.64649895,133.58,133.55,15.14]
[1744973351039,15.44390426,133.57,133.55,15.14]
[1744973351265,15.44390426,133.56,133.52,15.14]
[1744973351451,7.48783227,133.55,133.52,30.58390426]
[1744973351965,7.48783227,133.55,133.53,15.44390426]
[1744973352137,7.48671108,133.57,133.54,15.44390426]
[1744973352455,7.48671108,133.57,133.55,15.44390426]
[1744973352754,7.48671108,133.57,133.54,15.44390426]
[1744973352957,26.20348879,133.57,133.53,15.44390426]
[1744973354347,41.64739305,133.57,133.53,15.44390426]
[1744973354855,41.64739305,133.57,133.53,30.58390426]
[1744973355356,41.64739305,133.57,133.53,15.44390426]
[1744973355553,41.64739305,133.57,133.53,30.58390426]
[1744973355853,15.44390426,133.56,133.52,15.14]
[1744973357534,15.44390426,133.55,133.52,15.14]
[1744973357835,7.48839299,133.54,133.5,15.14]
[1744973358033,22.93229725,133.54,133.5,15.14]
[1744973358342,41.65327972,133.54,133.5,15.14]
[1744973360571,18.72098247,133.54,133.5,15.14]
[1744973360748,34.16488673,133.54,133.5,15.14]
[1744973361563,15.44390426,133.53,133.49,233.2]
[1744973361859,15.44390426,133.53,133.49,248.34]
[1744973362867,26.21330136,133.52,133.49,248.34]
[1744973363246,26.21330136,133.52,133.49,263.78390426]
[1744973363665,26.21330136,133.52,133.49,248.34]
[1744973364455,41.65720562,133.52,133.49,248.34]
[1744973364656,26.21330136,133.52,133.49,248.34]
[1744973364864,26.21722846,133.5,133.46,56.58390426]
[1744973365169,7.4906367,133.5,133.49,9.66522942]
[1744973367074,18.724168,133.52,133.49,9.66522942]
[1744973370467,7.48895379,133.53,133.5,9.66522942]
[1744973370771,7.48895379,133.53,133.51,15.16]
[1744973372859,35.87483049,133.54,133.51,15.16]
[1744973373270,9.66522942,133.53,133.51,15.16]
[1744973373651,35.87483049,133.54,133.51,15.16]
[1744973374583,9.66522942,133.53,133.51,15.16]
[1744973374869,73.32610417,133.52,133.47,9.66522942]
[1744973375070,9.66522942,133.51,133.47,15.12]
[1744973375372,9.66522942,133.5,133.47,15.12]
[1744973375754,28.59920142,133.51,133.47,15.12]
[1744973376174,9.66522942,133.5,133.47,15.12]
[1744973376474,28.59920142,133.51,133.47,15.12]
[1744973376848,26.21722846,133.5,133.47,15.12]
[1744973377771,35.88245788,133.5,133.47,15.12]
[1744973378273,26.21722846,133.5,133.47,15.12]
[1744973378675,26.21722846,133.5,133.47,24.78522942]
[1744973378858,63.66087475,133.52,133.48,9.66522942]
[1744973379056,9.66522942,133.51,133.47,15.12]
[1744973379260,28.31487828,133.51,133.47,15.12]
[1744973379771,28.31487828,133.51,133.45,26.03]
[1744973379956,9.66522942,133.5,133.46,9.66522942]
[1744973380977,26.21919244,133.49,133.46,9.66522942]
[1744973381379,26.21919244,133.49,133.45,24.81522942]
[1744973382080,26.21919244,133.49,133.46,9.66522942]
[1744973382268,26.21919244,133.49,133.45,0.03]
[1744973382269,18.933972,133.48,133.45,0.03]
[1744973382467,28.59920142,133.48,133.45,0.03]
[1744973382774,18.933972,133.48,133.45,0.03]
[1744973382981,7.49232037,133.47,133.45,0.03]
[1744973385178,26.22115672,133.48,133.45,9.69522942]
[1744973385478,26.22115672,133.48,133.46,9.66522942]
[1744973387478,18.72939766,133.48,133.45,0.03]
[1744973387665,18.72939766,133.48,133.45,9.69522942]
[1744973387861,18.72939766,133.48,133.46,9.66522942]
[1744973388791,7.49119784,133.49,133.47,9.66522942]
[1744973388970,7.48895379,133.53,133.48,24.78522942]
[1744973389284,18.72467752,133.52,133.5,9.66522942]
[1744973389880,35.87460488,133.54,133.49,9.66522942]
[1744973390073,9.66522942,133.52,133.48,15.12]
[1744973390877,18.933972,133.53,133.48,15.12]
[1744973391063,9.66522942,133.52,133.48,15.12]
[1744973391565,9.66522942,133.51,133.48,15.12]
[1744973391763,9.66522942,133.52,133.48,15.12]
[1744973391985,7.49007564,133.51,133.48,24.78522942]
[1744973392365,7.49007564,133.51,133.49,9.66522942]
[1744973393483,26.21526476,133.51,133.48,24.78522942]
[1744973394086,18.72518912,133.51,133.48,24.78522942]
[1744973395278,7.48951467,133.52,133.5,9.66522942]
[1744973395483,7.48951467,133.52,133.51,9.66522942]
[1744973395984,7.48783227,133.55,133.51,9.66522942]
[1744973396189,7.48783227,133.55,133.49,9.66522942]
[1744973396190,18.71930404,133.56,133.52,9.66522942]
[1744973396388,28.38453346,133.56,133.52,9.66522942]
[1744973397679,18.71930404,133.56,133.52,9.66522942]
[1744973398183,28.38453346,133.56,133.52,9.66522942]
[1744973398395,35.87180509,133.56,133.52,9.66522942]
[1744973399796,26.20657567,133.56,133.52,9.66522942]
[1744973404204,35.87180509,133.56,133.52,9.66522942]
[1744973404389,35.87180509,133.56,133.51,9.66522942]
[1744973404778,9.66522942,133.55,133.51,9.66522942]
[1744973405287,35.87180509,133.56,133.52,9.66522942]
[1744973405684,73.30816328,133.56,133.51,9.66522942]
[1744973406098,73.30816328,133.56,133.49,26.0]
[1744973406298,73.30816328,133.56,133.51,9.66522942]
[1744973407281,62.3393331,133.56,133.51,6.18367087]
[1744973407687,6.18367087,133.55,133.51,6.18367087]
[1744973407892,25.11764287,133.55,133.5,6.18367087]
[1744973409281,26.20937546,133.54,133.5,6.18367087]
[1744973410996,26.20937546,133.54,133.51,6.18367087]
[1744973411501,26.20937546,133.54,133.52,6.18367087]
[1744973413096,18.72098247,133.54,133.52,6.18367087]
[1744973413503,7.48783227,133.55,133.53,6.18367087]
[1744973415405,26.20584414,133.56,133.53,6.18367087]
[1744973415901,26.20584414,133.56,133.54,6.18367087]
[1744973416105,26.20584414,133.56,133.55,6.18367087]
[1744973416283,7.48727163,133.56,133.55,6.18367087]
[1744973416483,0.063,133.59,133.55,6.18367087]
[1744973416683,0.063,133.59,133.56,6.18367087]
[1744973417204,0.063,133.59,133.56,9.65468727]
[1744973417994,9.71768727,133.59,133.55,9.65468727]
[1744973418506,0.063,133.59,133.55,9.65468727]
[1744973418906,0.063,133.59,133.47,20.0]
[1744973418907,18.64964886,133.57,133.47,20.0]
[1744973419084,9.65468727,133.56,133.52,9.65468727]
[1744973419287,9.65468727,133.56,133.51,9.65468727]
[1744973419506,26.20741295,133.55,133.51,9.65468727]
[1744973419801,35.86210022,133.55,133.51,9.65468727]
[1744973420013,35.86210022,133.55,133.5,9.65468727]
[1744973420483,73.30126158,133.55,133.5,9.65468727]
[1744973420682,9.65468727,133.54,133.49,24.71468727]
[1744973421109,63.64657431,133.55,133.46,15.06]
[1744973421110,9.65468727,133.52,133.46,15.06]
[1744973421297,28.58865927,133.53,133.49,9.65468727]
[1744973421698,26.21330136,133.52,133.46,41.06]
[1744973422010,26.21330136,133.52,133.49,9.65468727]
[1744973422508,26.21330136,133.52,133.48,9.65468727]
[1744973422907,73.31556202,133.52,133.46,41.06]
[1744973423093,73.31556202,133.52,133.48,9.65468727]
[1744973426986,73.31556202,133.52,133.47,9.65468727]
[1744973427807,26.21722846,133.5,133.47,9.65468727]
[1744973428714,26.21722846,133.5,133.48,9.65468727]
[1744973429511,26.21722846,133.5,133.47,9.65468727]
[1744973430091,18.72659176,133.5,133.47,9.65468727]
[1744973431113,18.72659176,133.5,133.48,9.65468727]
[1744973431695,18.72659176,133.5,133.46,41.06]
[1744973431896,18.72659176,133.5,133.48,9.65468727]
[1744973433998,18.72659176,133.5,133.47,9.65468727]
[1744973436097,26.21722846,133.5,133.46,41.06]
[1744973436305,9.65468727,133.49,133.46,15.06]
[1744973437216,6.18977429,133.49,133.46,15.06]
[1744973437418,69.86018627,133.5,133.46,15.06]
[1744973439014,63.67041198,133.5,133.46,21.24977429]
[1744973439412,26.21722846,133.5,133.48,6.18977429]
[1744973440008,37.44757339,133.52,133.48,6.18977429]
[1744973440009,63.66087475,133.52,133.48,6.18977429]
[1744973440222,69.85064904,133.52,133.47,6.18977429]
[1744973441207,26.21330136,133.52,133.49,6.18977429]
[1744973442131,26.20937546,133.54,133.5,6.18977429]
[1744973442495,24.83942315,133.51,133.45,0.03]
[1744973442821,0.28432314,133.5,133.46,6.18977429]
[1744973443116,6.47409743,133.5,133.45,6.21977429]
[1744973443323,6.47409743,133.5,133.45,0.03]
[1744973443500,6.47409743,133.5,133.45,6.21977429]
[1744973444124,26.21919244,133.49,133.45,6.21977429]
[1744973444905,6.18977429,133.48,133.45,0.03]
[1744973446320,26.22312129,133.47,133.43,0.03]
[1744973446528,26.22312129,133.47,133.43,6.21977429]
[1744973447325,63.68472314,133.47,133.43,6.21977429]
[1744973447514,63.68472314,133.47,133.45,6.18977429]
[1744973448109,26.22312129,133.47,133.45,6.18977429]
[1744973448420,63.67518165,133.49,133.45,6.18977429]
[1744973448926,69.86495594,133.49,133.44,6.18977429]
[1744973450707,69.86495594,133.49,133.45,6.18977429]
[1744973450708,63.67518165,133.49,133.45,6.18977429]
[1744973452001,63.67518165,133.49,133.46,6.18977429]
[1744973452828,56.18398381,133.49,133.46,6.18977429]
[1744973453713,7.4906367,133.5,133.48,6.18977429]
[1744973454023,7.4906367,133.5,133.49,6.18977429]